bitfinex-derivatives/quotes_ETHF0:USTF0_20241020
["timestamp","ask_amount","ask_price","bid_price","bid_amount"]
[1729433729038,3.6575,2698.0,2697.3,3.2078]
[1729433729243,0.37072,2697.6,2697.3,3.2078]
[1729433729958,0.37074,2697.4,2697.3,3.2078]
[1729433730145,0.37074,2697.4,2697.2,3.2078]
[1729433730452,0.37074,2697.5,2697.2,3.2078]
[1729433730845,3.6575,2698.0,2697.2,3.2078]
[1729433731257,0.37067,2697.9,2697.2,3.2078]
[1729433731460,0.10362754,2698.2,2697.6,3.2078]
[1729433731747,0.10362754,2698.2,2697.1,4.19464627]
[1729433731949,0.10362754,2698.2,2697.5,3.2078]
[1729433732456,3.2078,2698.1,2696.9,3.2078]
[1729433732639,0.37073,2697.5,2697.3,3.2078]
[1729433733048,4.13442,2698.1,2697.4,3.2078]
[1729433733246,0.37071,2697.6,2697.4,3.2078]
[1729433733662,0.37071,2697.6,2697.4,6.915]
[1729433733949,4.13442,2698.1,2697.4,3.2078]
[1729433733950,0.37066,2698.0,2697.4,3.2078]
[1729433734161,0.37073,2697.5,2697.4,3.2078]
[1729433734550,0.36993,2697.5,2697.4,3.2078]
[1729433734955,1.29748,2697.7,2696.9,3.2078]
[1729433735156,0.37079,2697.1,2696.9,3.2078]
[1729433735666,0.3708,2697.0,2696.9,3.2078]
[1729433739875,0.3708,2697.0,2695.6,0.3712]
[1729433739876,0.37084,2696.7,2696.6,3.2078]
[1729433740367,0.37093,2696.0,2695.9,3.2078]
[1729433741067,0.37093,2696.0,2695.5,3.2078]
[1729433741068,0.37099,2695.6,2695.5,3.2078]
[1729433741660,4.08059,2695.6,2695.5,3.2078]
[1729433741966,0.37099,2695.6,2695.5,3.2078]
[1729433742464,0.37099,2695.7,2695.5,3.2078]
[1729433742766,3.2078,2696.2,2695.5,3.2078]
[1729433742967,0.37096,2695.9,2695.5,3.2078]
[1729433743154,0.37097,2695.7,2695.6,3.2078]
[1729433743355,3.2078,2696.2,2695.6,3.2078]
[1729433743356,0.37097,2695.8,2695.6,3.2078]
[1729433744067,40.8,2696.1,2695.6,3.2078]
[1729433744364,0.37095,2695.9,2695.6,3.2078]
[1729433744567,0.37093,2696.0,2695.6,3.2078]
[1729433744767,0.37093,2696.0,2695.1,1.005]
[1729433744768,3.2078,2696.5,2695.9,3.2078]
[1729433745265,3.2078,2696.2,2695.2,4.27980975]
[1729433745467,0.37101,2695.5,2695.4,3.2078]
[1729433745970,0.92738,2695.9,2695.1,3.2078]
[1729433746154,0.92741,2695.8,2695.1,3.2078]
[1729433746361,4.13518,2695.9,2695.1,3.2078]
[1729433746862,0.37103,2695.3,2695.1,3.2078]
[1729433747256,0.37104,2695.2,2695.1,3.2078]
[1729433747664,4.08144,2695.2,2695.1,3.2078]
[1729433748460,0.3711,2694.9,2694.4,1.005]
[1729433748661,0.37108,2695.0,2694.4,1.005]
[1729433748862,3.2078,2695.3,2694.6,3.2078]
[1729433749064,0.37109,2694.9,2694.4,4.2128]
[1729433749369,0.37108,2695.0,2694.8,3.2078]
[1729433749766,0.37028,2695.0,2694.8,3.2078]
[1729433750072,3.2078,2695.3,2694.5,3.2078]
[1729433750270,0.37112,2694.7,2694.5,3.2078]
[1729433750460,0.37114,2694.6,2694.5,3.2078]
[1729433750664,0.37114,2694.5,2694.2,3.2078]
[1729433750864,0.37116,2694.4,2694.2,3.2078]
[1729433751065,0.37117,2694.3,2694.2,3.2078]
[1729433751269,0.92772,2694.9,2693.9,3.2078]
[1729433751270,0.37118,2694.2,2693.9,3.2078]
[1729433751673,0.37118,2694.3,2693.9,3.2078]
[1729433751866,0.37118,2694.2,2693.9,3.2078]
[1729433752173,0.37121,2694.0,2693.9,3.2078]
[1729433752369,0.92782,2694.6,2693.9,3.2078]
[1729433752671,0.37121,2694.0,2693.9,3.2078]
[1729433754863,0.37121,2694.0,2693.2,9.273]
[1729433754864,0.37121,2694.0,2693.4,1.005]
[1729433755064,4.9664,2693.9,2693.4,1.005]
[1729433755363,4.9664,2693.9,2693.2,1.005]
[1729433755364,3.2078,2693.6,2693.2,1.005]
[1729433755567,3.2078,2693.6,2693.2,0.6772]
[1729433755774,3.2078,2693.6,2693.1,1.005]
[1729433756170,0.3713,2693.4,2692.7,3.2078]
[1729433756379,3.2078,2693.6,2692.8,1.005]
[1729433756672,0.37131,2693.3,2692.7,4.211]
[1729433757264,3.2078,2693.6,2692.7,3.206]
[1729433757465,3.2078,2692.9,2692.2,1.005]
[1729433757871,3.2078,2692.9,2692.2,8.58845327]
[1729433758077,3.2078,2692.9,2692.2,3.7136]
[1729433758277,0.37138,2692.8,2692.2,1.0041]
[1729433758472,3.2078,2692.9,2692.2,1.0041]
[1729433758872,0.37138,2692.8,2692.2,1.0041]
[1729433759177,3.57917,2692.9,2692.2,1.006]
[1729433759475,0.37141,2692.6,2692.0,4.2138]
[1729433759677,0.37142,2692.5,2692.0,4.2138]
[1729433760368,3.2078,2692.9,2692.0,3.2078]
[1729433760575,0.37143,2692.4,2692.0,3.2078]
[1729433760878,3.2078,2692.9,2692.0,3.2078]
[1729433761172,0.37144,2692.3,2692.0,3.2078]
[1729433761472,3.2078,2692.2,2691.6,1.006]
[1729433761676,3.2078,2692.5,2691.6,4.2138]
[1729433761875,3.2078,2692.5,2691.7,8.74340193]
[1729433762070,3.2078,2692.5,2691.7,12.45780193]
[1729433762375,3.2078,2692.5,2691.8,3.7144]
[1729433762569,3.2078,2692.9,2691.9,3.2078]
[1729433762765,3.02014704,2693.8,2692.6,3.2078]
[1729433762969,3.2078,2694.1,2693.2,3.2078]
[1729433763178,3.2078,2694.1,2693.4,3.2078]
[1729433763374,2.69302814,2694.1,2693.4,3.2078]
[1729433763568,2.69302814,2694.1,2693.5,8.79698789]
[1729433763772,2.69302814,2694.1,2693.7,3.2078]
[1729433763978,3.2078,2694.5,2693.8,3.712]
[1729433764183,3.2078,2694.5,2693.8,4.2439937]
[1729433764572,3.2078,2694.5,2693.9,3.712]
[1729433764875,3.2078,2694.5,2693.7,3.2078]
[1729433764876,3.2078,2694.5,2694.0,7.82387007]
[1729433765079,3.2078,2694.5,2694.1,4.718]
[1729433765377,0.92732,2696.1,2694.1,4.718]
[1729433765378,3.2078,2695.0,2694.3,3.2078]
[1729433765882,3.2078,2695.0,2694.2,3.2078]
[1729433766075,0.37109,2694.9,2694.2,0.998]
[1729433766274,3.2078,2694.7,2694.2,0.998]
[1729433766478,3.2078,2695.0,2694.2,0.998]
[1729433766782,0.37109,2694.9,2694.2,0.998]
[1729433766971,0.37109,2694.9,2694.1,3.2078]
[1729433766972,3.2078,2694.7,2694.3,0.998]
[1729433767280,0.37113,2694.6,2693.8,3.98510889]
[1729433767481,3.2078,2694.4,2693.8,3.98510889]
[1729433767669,3.2078,2694.4,2693.6,3.2078]
[1729433767869,3.2078,2694.4,2693.6,3.207]
[1729433768069,0.37118,2694.3,2693.7,0.998]
[1729433768382,3.2078,2694.4,2693.7,0.998]
[1729433769580,3.2078,2694.4,2693.6,3.207]
[1729433769581,3.57896,2694.4,2693.6,3.207]
[1729433769782,3.2078,2694.1,2693.7,0.998]
[1729433770075,3.579,2694.1,2693.7,0.998]
[1729433770276,3.579,2694.1,2693.0,3.84354538]
[1729433770277,3.2078,2694.1,2693.0,3.2078]
[1729433770478,0.92783,2694.6,2692.7,3.2078]
[1729433770479,0.3713,2693.4,2692.7,3.2078]
[1729433770679,0.3713,2693.4,2691.7,3.6196]
[1729433770680,3.2078,2693.2,2692.5,0.18578007]
[1729433770979,0.928,2694.1,2692.3,3.5798]
[1729433770980,3.2078,2693.6,2692.6,4.87876994]
[1729433771169,0.37129,2693.5,2692.6,4.87876994]
[1729433771479,3.2078,2693.3,2692.5,0.18310617]
[1729433771675,3.57911,2693.3,2692.6,0.998]
[1729433771873,3.2078,2693.3,2692.6,3.88076994]
[1729433772073,3.2078,2693.3,2692.7,0.998]
[1729433772074,3.57911,2693.3,2692.7,0.998]
[1729433772282,3.2078,2693.3,2692.7,0.998]
[1729433772475,0.37133,2693.2,2692.7,0.998]
[1729433772673,0.1207,2693.4,2692.3,3.39647679]
[1729433772674,3.2078,2693.0,2692.3,3.39647679]
[1729433772878,0.1207,2693.4,2692.4,0.998]
[1729433772879,3.2078,2693.3,2692.4,0.998]
[1729433773183,3.2078,2693.3,2692.4,4.88502001]
[1729433773376,3.2078,2693.3,2692.5,0.998]
[1729433774482,3.2078,2693.3,2692.3,3.39647679]
[1729433774786,3.2078,2693.3,2692.4,5.26878878]
[1729433775174,3.2078,2693.3,2692.4,4.27078878]
[1729433775379,0.37134,2693.1,2692.4,4.27078878]
[1729433775575,3.2078,2693.3,2692.5,0.998]
[1729433775878,3.2078,2693.3,2692.6,3.89696022]
[1729433776477,3.2078,2693.3,2692.6,7.10476022]
[1729433777097,0.37122,2694.0,2692.9,3.2078]
[1729433777284,3.2078,2694.1,2692.9,3.2078]
[1729433777285,0.37123,2693.9,2692.9,3.2078]
[1729433777592,3.2078,2693.8,2693.0,4.00086276]
[1729433777887,3.2078,2693.8,2693.1,0.998]
[1729433778187,3.2078,2693.8,2693.2,7.3934936]
[1729433778486,3.2078,2693.8,2693.2,11.1062936]
[1729433778689,3.2078,2693.8,2693.3,3.7128]
[1729433779091,3.2078,2693.8,2693.4,4.20121046]
[1729433779602,3.2078,2694.3,2693.5,6.9206]
[1729433779791,3.2078,2694.3,2693.5,8.00202568]
[1729433780094,0.37118,2694.2,2693.6,0.998]
[1729433780385,0.37118,2694.2,2693.4,4.03099926]
[1729433780583,0.37118,2694.2,2693.5,0.998]
[1729433780789,0.37118,2694.2,2693.6,0.998]
[1729433781087,0.37118,2694.2,2693.3,4.03099926]
[1729433781088,3.2078,2694.4,2693.7,1.18578514]
[1729433781290,1.85477,2695.9,2694.3,3.2078]
[1729433781291,3.2078,2695.0,2694.3,3.2078]
[1729433781485,3.2078,2695.3,2694.9,3.2078]
[1729433781687,3.2078,2695.6,2695.0,0.998]
[1729433781989,3.57875,2695.9,2695.2,3.2078]
[1729433782187,3.57875,2695.9,2695.0,0.998]
[1729433782188,3.2078,2695.9,2695.3,3.2078]
[1729433782389,3.57875,2695.9,2695.3,3.2078]
[1729433782588,3.2078,2695.9,2695.3,3.2078]
[1729433783693,3.2078,2695.9,2695.4,4.2048]
[1729433784588,0.37093,2696.1,2695.4,4.2048]
[1729433784785,0.37091,2696.2,2695.4,4.2048]
[1729433785690,0.37092,2696.1,2695.4,4.2048]
[1729433786090,3.2078,2696.2,2695.4,3.2078]
[1729433786091,0.37094,2696.0,2695.4,3.2078]
[1729433786289,0.37093,2696.0,2695.1,3.2078]
[1729433786495,0.37093,2696.0,2695.4,3.2078]
[1729433786995,3.2078,2696.2,2695.5,0.997]
[1729433787188,0.37094,2696.0,2695.5,0.997]
[1729433788394,3.2078,2696.2,2695.5,0.997]
[1729433788584,0.37093,2696.1,2695.5,0.997]
[1729433788786,0.37093,2696.0,2695.5,0.997]
[1729433789286,3.2078,2696.2,2695.5,0.997]
[1729433789482,3.57871,2696.2,2695.5,0.997]
[1729433789883,3.2078,2696.2,2695.5,0.997]
[1729433790596,0.3709,2696.3,2695.5,0.997]
[1729433791098,3.57871,2696.2,2695.5,0.997]
[1729433791294,0.37092,2696.1,2695.4,3.2078]
[1729433791493,0.37092,2696.1,2695.5,0.997]
[1729433792195,0.37093,2696.0,2695.5,0.997]
[1729433792499,0.37093,2696.1,2695.2,1.8896]
[1729433792795,0.37093,2696.1,2695.3,3.2078]
[1729433792998,3.2078,2696.2,2695.3,4.2048]
[1729433793194,3.57871,2696.2,2695.3,4.2048]
[1729433793397,3.2078,2696.2,2695.3,4.2048]
[1729433793595,0.37092,2696.1,2695.3,4.2048]
[1729433794392,0.37092,2696.1,2695.3,3.2078]
[1729433794597,0.37093,2696.1,2695.5,0.0008]
[1729433794793,3.2078,2696.2,2695.5,0.0008]
[1729433795703,0.37097,2695.8,2695.5,0.0008]
[1729433795995,0.37093,2696.1,2695.5,0.0008]
[1729433796385,3.2078,2696.2,2695.5,0.0008]
[1729433796799,3.2078,2696.2,2695.6,0.97]
[1729433796993,0.37094,2696.0,2695.7,0.97]
[1729433797191,0.37092,2696.1,2695.5,0.0008]
[1729433797393,0.37092,2696.1,2695.5,0.9708]
[1729433797597,0.37094,2696.0,2695.5,0.9708]
[1729433798605,3.57871,2696.2,2695.5,0.9708]
[1729433798810,0.37093,2696.1,2695.5,0.9708]
[1729433799205,3.2078,2696.2,2695.5,0.0008]
[1729433799501,3.2078,2696.2,2695.5,0.9708]
[1729433799502,0.37094,2696.0,2695.5,0.9708]
[1729433800297,3.2078,2695.9,2695.5,0.0008]
[1729433800493,0.37096,2695.8,2695.5,0.0008]
[1729433800694,3.57875,2695.9,2695.5,0.0008]
[1729433800996,3.2078,2695.9,2695.5,0.0008]
[1729433801302,3.57875,2695.9,2695.5,0.0008]
[1729433801502,3.2078,2695.9,2695.5,0.0008]
[1729433802508,3.2078,2696.2,2695.5,0.0008]
[1729433802800,3.2078,2696.2,2695.6,7.31552749]
[1729433804197,1.04847,2697.1,2695.6,7.31552749]
[1729433804198,0.37079,2697.1,2695.9,3.2078]
[1729433804398,0.3708,2697.1,2696.2,3.2078]
[1729433804596,0.3708,2697.1,2696.5,3.2078]
[1729433804908,3.2078,2697.2,2696.2,3.2078]
[1729433805111,3.2078,2696.3,2695.5,0.0008]
[1729433805401,3.2078,2695.9,2695.5,0.0008]
[1729433806205,3.2078,2695.9,2695.6,3.7096]
[1729433806407,3.57867,2696.5,2695.6,11.75263409]
[1729433806705,3.2078,2696.1,2695.6,10.00523409]
[1729433807113,3.2078,2696.4,2695.6,10.00523409]
[1729433808302,3.2078,2696.4,2695.7,3.2078]
[1729433808703,3.2078,2696.1,2695.5,0.9708]
[1729433810209,3.2078,2696.4,2695.6,4.17886724]
[1729433810404,3.2078,2696.4,2695.7,3.2078]
[1729433810803,3.2078,2696.4,2695.8,4.17886724]
[1729433813206,3.2078,2696.4,2695.9,0.969]
[1729433813904,3.2078,2696.4,2695.7,3.2078]
[1729433813905,3.57868,2696.4,2696.0,3.97615171]
[1729433814105,3.57868,2696.4,2696.0,4.94515171]
[1729433814308,3.57868,2696.4,2696.0,0.969]
[1729433815012,3.57868,2696.4,2695.5,0.0008]
[1729433815013,3.2078,2696.4,2695.5,0.0008]
[1729433815312,3.2078,2696.4,2695.6,8.28641688]
[1729433815514,0.37093,2696.1,2695.6,8.28641688]
[1729433815709,0.37093,2696.1,2695.6,7.31741688]
[1729433815905,3.2078,2696.4,2695.6,7.31741688]
[1729433816111,0.92716,2696.6,2695.5,0.0008]
[1729433816112,3.57873,2696.1,2695.5,0.0008]
[1729433816313,3.2078,2696.1,2695.5,0.9698]
[1729433816609,3.57873,2696.1,2695.5,0.9698]
[1729433817000,3.2078,2696.1,2695.5,0.9698]
[1729433817607,3.57873,2696.1,2695.5,0.0008]
[1729433817802,3.57873,2696.1,2695.6,0.969]
[1729433818019,3.57873,2696.1,2695.5,0.0008]
[1729433818212,3.2078,2696.1,2695.6,0.969]
[1729433820313,3.57872,2696.1,2695.5,0.0008]
[1729433820621,3.2078,2696.1,2695.6,0.969]
[1729433823223,3.57872,2696.1,2695.6,0.969]
[1729433823521,3.2078,2696.1,2695.6,0.969]
[1729433823716,3.2078,2696.1,2695.5,0.0008]
[1729433823919,3.57873,2696.1,2695.6,0.969]
[1729433824122,3.2078,2695.7,2695.6,0.969]
[1729433824510,3.2078,2696.0,2695.6,3.7104]
[1729433824717,3.2078,2696.0,2695.6,0.0008]
[1729433826416,2.78164597,2696.6,2695.6,0.0008]
[1729433826417,3.2078,2696.3,2695.6,0.0008]
[1729433827020,3.2078,2696.3,2695.8,3.2078]
[1729433827222,3.2078,2696.3,2695.9,0.11598012]
[1729433827416,3.2078,2696.3,2696.0,0.11598012]
[1729433827617,3.2078,2696.3,2695.8,3.2078]
[1729433827922,3.2078,2696.3,2695.9,0.11598007]
[1729433828123,3.2078,2696.3,2696.0,0.11598007]
[1729433828327,3.2078,2696.3,2695.8,3.2078]
[1729433828623,0.3709,2696.3,2695.9,0.11597954]
[1729433828818,3.57868,2696.4,2695.6,0.9648]
[1729433829018,3.57868,2696.4,2695.7,0.30155289]
[1729433829210,3.57868,2696.4,2695.6,0.9648]
[1729433829211,3.57868,2696.4,2695.8,0.11598188]
[1729433829414,3.2078,2696.4,2695.9,0.11598188]
[1729433829612,3.2078,2696.4,2695.6,0.9648]
[1729433829818,3.2078,2696.4,2695.7,0.30155148]
[1729433830027,3.2078,2696.4,2695.8,0.11598134]
[1729433830222,3.2078,2696.4,2695.7,3.2078]
[1729433830223,3.2078,2696.4,2695.9,0.11598134]
[1729433830418,3.57869,2696.4,2695.8,0.964]
[1729433830626,3.2078,2696.4,2695.9,0.11598065]
[1729433830825,3.2078,2696.4,2695.8,0.964]
[1729433831026,3.57868,2696.4,2695.9,0.11598023]
[1729433831229,3.57868,2696.4,2695.8,0.964]
[1729433831422,3.57868,2696.4,2695.9,0.11598012]
[1729433831722,3.57868,2696.4,2695.8,0.964]
[1729433831723,3.2078,2696.4,2695.8,0.964]
[1729433831930,3.57868,2696.4,2695.8,0.964]
[1729433832316,5.98946597,2696.4,2695.8,0.964]
[1729433832715,5.61858597,2696.4,2695.8,0.964]
[1729433832920,3.2078,2696.4,2695.9,0.11598111]
[1729433833127,3.2078,2696.4,2695.8,4.1718]
[1729433833519,2.41078597,2696.6,2695.9,0.11597845]
[1729433833726,2.41078597,2696.8,2696.4,3.2078]
[1729433834030,3.2078,2697.0,2696.4,4.1718]
[1729433834323,2.41078597,2697.1,2696.4,4.1718]
[1729433834729,2.41078597,2697.2,2696.7,3.2078]
[1729433834933,2.41078597,2697.3,2696.7,3.39240316]
[1729433835123,2.41078597,2697.3,2696.8,3.88459313]
[1729433835321,2.41078597,2697.4,2696.8,3.88459313]
[1729433836337,2.41078597,2697.5,2696.8,3.88459313]
[1729433836724,2.41078597,2697.5,2696.8,6.17759313]
[1729433837430,2.78151597,2697.5,2696.8,6.17759313]
[1729433837731,2.41078597,2697.5,2696.8,6.17759313]
[1729433838032,3.2078,2697.6,2696.8,6.17759313]
[1729433838033,5.61858597,2697.6,2696.8,6.17759313]
[1729433838222,2.41078597,2697.8,2697.0,3.2078]
[1729433838421,5.98925597,2698.0,2697.1,0.964]
[1729433838627,5.98925597,2698.0,2697.1,5.2448441]
[1729433838823,5.61858597,2698.0,2697.1,5.2448441]
[1729433839026,2.41078597,2697.9,2697.1,5.2448441]
[1729433839231,3.2078,2698.0,2697.1,5.2448441]
[1729433839232,0.37069,2697.8,2697.1,5.2448441]
[1729433839433,5.61858597,2698.0,2697.1,5.2448441]
[1729433839621,5.61858597,2698.0,2697.1,4.2808441]
[1729433839622,0.37077,2697.2,2697.1,4.2808441]
[1729433839819,0.37074,2697.5,2696.8,3.2578]
[1729433840021,0.37071,2697.6,2696.8,6.4656]
[1729433840221,0.37075,2697.4,2696.8,6.4656]
[1729433841126,0.37077,2697.2,2696.9,0.964]
[1729433841331,0.37076,2697.3,2696.9,0.964]
[1729433841525,0.3708,2697.0,2696.8,0.0008]
[1729433841721,3.2078,2697.4,2696.8,0.0008]
[1729433841722,3.57855,2697.4,2696.8,0.0008]
[1729433841937,3.2078,2697.2,2696.8,0.0008]
[1729433842138,3.57857,2697.2,2696.8,0.0008]
[1729433842328,3.2078,2697.2,2696.8,0.0008]
[1729433842530,0.37081,2696.9,2696.8,0.0008]
[1729433842937,4.07881,2696.9,2696.8,0.0008]
[1729433843131,7.28661,2696.9,2696.8,0.0008]
[1729433843328,7.28661,2696.9,2696.2,4.1718]
[1729433843329,0.37088,2696.4,2696.2,4.1718]
[1729433843529,0.37088,2696.4,2696.2,3.2078]
[1729433843732,0.37087,2696.5,2696.2,3.2078]
[1729433844034,0.37084,2696.7,2696.2,3.2078]
[1729433844235,3.2078,2696.9,2696.2,3.2078]
[1729433844437,0.37079,2697.1,2696.3,6.08931103]
[1729433844643,0.3708,2697.0,2696.4,0.964]
[1729433844826,3.2078,2697.2,2696.4,0.964]
[1729433845130,3.2078,2697.2,2696.5,2.2968]
[1729433845335,3.2078,2697.2,2696.5,5.69374226]
[1729433845636,3.2078,2696.9,2696.5,2.2968]
[1729433845839,3.2078,2697.3,2696.5,2.2968]
[1729433846222,3.2078,2697.3,2696.4,4.1718]
[1729433846223,3.2078,2697.0,2696.3,2.1291]
[1729433846432,3.2078,2697.0,2696.4,0.964]
[1729433846623,0.37082,2696.9,2696.4,0.964]
[1729433846829,0.37082,2696.9,2696.3,2.1291]
[1729433847023,0.37082,2696.9,2696.3,3.0931]
[1729433847340,0.37081,2696.9,2696.3,3.0931]
[1729433847730,3.2078,2697.0,2696.3,3.0931]
[1729433848044,0.37073,2697.5,2696.4,4.15737138]
[1729433848226,0.37073,2697.5,2696.6,3.2078]
[1729433848427,0.37073,2697.5,2696.7,3.1444]
[1729433848638,3.2078,2697.6,2696.7,3.1444]
[1729433848846,0.37077,2697.2,2696.7,3.1444]
[1729433849143,3.2078,2697.6,2696.7,3.1444]
[1729433849144,0.37076,2697.3,2696.7,3.1444]
[1729433849525,0.37077,2697.2,2696.7,2.1804]
[1729433849733,0.37078,2697.2,2696.7,3.1444]
[1729433850832,3.2078,2697.3,2696.7,3.1444]
[1729433851031,3.2078,2697.3,2696.8,3.2078]
[1729433851541,3.2078,2697.3,2696.9,3.98630489]
[1729433851740,3.2078,2697.3,2696.9,7.69430489]
[1729433851935,3.2078,2697.3,2697.0,2.1678]
[1729433852242,0.37069,2697.8,2697.0,5.8758]
[1729433852438,3.5785,2697.8,2697.1,3.2078]
[1729433852743,3.2078,2697.8,2697.2,0.964]
[1729433852939,0.37068,2697.9,2697.2,0.964]
[1729433853438,0.37067,2698.0,2697.2,0.964]
[1729433853631,3.2078,2698.1,2697.4,3.2078]
[1729433853827,0.37067,2698.0,2697.4,3.2078]
[1729433854042,0.37067,2698.0,2697.5,0.964]
[1729433854242,3.2078,2698.1,2697.5,0.964]
[1729433854442,0.37069,2697.8,2697.4,3.2078]
[1729433854637,0.37067,2698.0,2697.4,3.2078]
[1729433854939,3.2078,2698.1,2697.4,3.2078]
[1729433855141,3.2078,2697.8,2697.0,2.1686]
[1729433855328,0.10362754,2698.2,2697.1,0.964]
[1729433855329,3.2078,2697.9,2697.1,0.964]
[1729433855531,3.2078,2697.6,2697.0,0.0008]
[1729433855733,0.37078,2697.1,2697.0,0.0008]
[1729433856138,4.345,2697.5,2697.0,0.0008]
[1729433856342,3.2078,2698.0,2697.0,0.18166767]
[1729433856637,3.2078,2698.0,2697.1,0.964]
[1729433856838,3.2078,2698.0,2697.2,3.2078]
[1729433857744,3.2078,2698.0,2697.5,3.2078]
[1729433858432,3.2078,2698.0,2697.6,2.0791]
[1729433859444,3.2078,2698.0,2697.7,0.964]
[1729433861142,3.2078,2698.0,2697.6,5.2869]
[1729433861356,3.2078,2698.0,2697.6,2.0791]
[1729433861643,0.10362754,2698.2,2697.6,2.0791]
[1729433862250,0.10362754,2698.2,2697.7,0.964]
[1729433862644,0.10362754,2698.2,2697.7,5.2215062]
[1729433863441,3.2078,2699.1,2698.1,3.2078]
[1729433863649,4.31076779,2700.0,2699.0,3.2078]
[1729433863847,4.31076779,2700.0,2699.4,3.2078]
[1729433864147,8.38666779,2700.0,2699.0,3.2078]
[1729433864338,8.38666779,2700.0,2698.4,3.2078]
[1729433864339,3.2078,2699.6,2698.4,3.2078]
[1729433864543,4.453,2699.5,2698.4,3.2078]
[1729433864742,8.38666779,2700.0,2698.7,3.2078]
[1729433864943,0.37046,2699.5,2699.0,3.2078]
[1729433865149,0.37047,2699.4,2699.0,3.2078]
[1729433865345,3.2078,2699.9,2699.0,3.2078]
[1729433865346,0.37046,2699.5,2699.0,3.2078]
[1729433865654,3.2078,2699.6,2699.0,3.2078]
[1729433865945,4.31076779,2700.0,2699.0,3.2078]
[1729433866142,4.31076779,2700.0,2698.6,0.63815456]
[1729433866143,0.37044,2699.6,2699.3,3.2078]
[1729433866341,4.31076779,2700.0,2699.4,3.2078]
[1729433866342,4.68115779,2700.0,2699.4,3.2078]
[1729433866547,4.31076779,2700.0,2699.4,7.22816004]
[1729433866853,4.31076779,2700.0,2699.3,2.1046]
[1729433867059,0.37041,2699.9,2699.4,1.021]
[1729433867246,4.31076779,2700.0,2699.4,1.021]
[1729433867448,0.37041,2699.9,2699.4,1.021]
[1729433867750,4.31076779,2700.0,2699.5,4.03715142]
[1729433868543,4.31076779,2700.0,2699.9,3.2078]
[1729433870940,3.2078,2701.2,2699.9,11.11715152]
[1729433871146,3.2078,2701.2,2700.3,3.2078]
[1729433871345,3.2078,2701.2,2700.6,3.2078]
[1729433871739,3.2078,2701.2,2700.6,4.2288]
[1729433872052,3.2078,2701.2,2700.7,4.094796]
[1729433872345,3.2078,2701.2,2700.4,2.2591]
[1729433872346,0.37024,2701.1,2700.4,2.2591]
[1729433872541,0.37025,2701.0,2700.4,2.2591]
[1729433872744,0.37026,2701.0,2700.5,4.02417771]
[1729433873049,0.37029,2700.7,2700.5,4.02417771]
[1729433873247,3.2078,2701.2,2700.4,2.2591]
[1729433873248,1.2414,2701.1,2700.4,2.2591]
[1729433873449,0.37029,2700.7,2700.4,2.2591]
[1729433873749,0.37029,2700.7,2698.4,0.11578237]
[1729433873750,0.37035,2700.3,2700.0,3.2078]
[1729433873948,3.2078,2700.5,2700.0,3.2078]
[1729433873949,0.37033,2700.4,2700.0,3.2078]
[1729433874145,3.2078,2700.5,2700.0,3.2078]
[1729433874338,4.4492,2701.1,2699.7,1.20459487]
[1729433874661,3.2078,2700.8,2699.8,4.13075747]
[1729433874842,0.37029,2700.7,2700.2,3.2078]
[1729433875041,0.37029,2700.7,2699.8,7.33855747]
[1729433875241,4.4492,2701.1,2699.7,1.20459487]
[1729433875242,4.4492,2701.1,2699.9,3.2078]
[1729433875553,3.2078,2700.6,2700.0,3.2078]
[1729433875749,0.37034,2700.4,2700.0,3.2078]
[1729433875939,3.2078,2700.6,2699.8,1.021]
[1729433875940,0.37034,2700.3,2699.8,1.021]
[1729433876147,3.2078,2700.6,2699.7,3.2078]
[1729433876148,0.37037,2700.2,2699.7,3.2078]
[1729433876341,0.37035,2700.3,2699.7,4.2288]
[1729433876545,0.37032,2700.5,2699.7,4.2288]
[1729433876747,3.2078,2700.6,2699.7,4.2288]
[1729433876748,0.37037,2700.2,2699.7,4.2288]
[1729433877041,40.8,2700.5,2699.7,3.2078]
[1729433877247,0.37039,2700.0,2699.7,3.2078]
[1729433877441,0.37037,2700.2,2699.7,3.2078]
[1729433877845,4.4404,2700.4,2699.7,3.2078]
[1729433877846,0.37039,2700.0,2699.7,3.2078]
[1729433878046,0.37035,2700.3,2699.7,3.2078]
[1729433878247,4.4404,2700.4,2699.7,3.2078]
[1729433878459,0.37038,2700.1,2699.7,3.2078]
[1729433878857,4.4404,2700.4,2699.7,3.2078]
[1729433879044,0.37038,2700.1,2699.7,3.2078]
[1729433879244,0.37036,2700.2,2699.7,3.2078]
[1729433879552,0.37038,2700.1,2699.7,3.2078]
[1729433880154,4.4404,2700.4,2699.7,3.2078]
[1729433880457,44.0078,2700.5,2699.7,3.39419871]
[1729433880761,44.37812,2700.5,2699.7,5.50929871]
[1729433880956,44.0078,2700.5,2699.7,5.50929871]
[1729433881254,40.8,2700.5,2699.7,5.3229]
[1729433881465,40.8,2700.5,2699.8,1.021]
[1729433881643,40.8,2700.5,2699.7,4.2288]
[1729433881644,44.0078,2700.5,2699.7,4.2288]
[1729433881956,0.37039,2700.0,2699.7,3.2078]
[1729433882163,40.8,2700.5,2699.7,3.39227134]
[1729433882458,3.2078,2700.9,2700.3,3.2078]
[1729433882850,0.37032,2700.5,2700.1,1.02]
[1729433883153,0.37032,2700.5,2700.0,4.2278]
[1729433883369,0.37029,2700.8,2700.3,3.2078]
[1729433883652,3.2078,2700.9,2700.3,3.2078]